[Event "VII Open Internacional Quart de Poblet"]
[Site "Quart de Poblet, Spain"]
[Date "2019.08.09"]
[Round "6.1"]
[White "Castella Garcia, Fausto"]
[Black "Cruz Lledo, Pablo"]
[Result "0-1"]
[TimeControl "90m +30s por jugada"]
[WhiteFideId "3501922"]
[BlackFideId "2297361"]
[WhiteElo "2315"]
[BlackElo "2445"]

1. e4 {[%clk 01:14:58]} {[%emt 00:16:02]} c6 {[%clk 01:30:26]} {[%emt
00:00:37]} 2. Nc3 {[%clk 01:15:01]} {[%emt 00:00:28]} d5 {[%clk 01:30:50]}
{[%emt 00:00:06]} 3. Nf3 {[%clk 01:15:27]} {[%emt 00:00:05]} g6 {[%clk
01:31:14]} {[%emt 00:00:04]} 4. d4 {[%clk 01:15:20]} {[%emt 00:00:35]} Bg7
{[%clk 01:31:36]} {[%emt 00:00:07]} 5. h3 {[%clk 01:14:14]} {[%emt 00:01:36]}
Nh6 {[%clk 01:31:59]} {[%emt 00:00:07]} 6. exd5 {[%clk 01:13:22]} {[%emt
00:01:21]} cxd5 {[%clk 01:32:22]} {[%emt 00:00:08]} 7. Bb5+ {[%clk 01:13:28]}
{[%emt 00:00:24]} Nc6 {[%clk 00:55:20]} {[%emt 00:37:32]} 8. Ne5 {[%clk
01:11:03]} {[%emt 00:03:00]} Bd7 {[%clk 00:54:00]} {[%emt 00:01:46]} 9. Bxc6
{[%clk 01:10:23]} {[%emt 00:01:11]} Bxc6 {[%clk 00:53:17]} {[%emt 00:01:11]} 10.
Bxh6 {[%clk 00:57:06]} {[%emt 00:13:56]} Bxh6 {[%clk 00:53:43]} 11. Nxc6 {[%clk
00:57:17]} {[%emt 00:00:15]} bxc6 {[%clk 00:54:04]} {[%emt 00:00:09]} 12. Na4
{[%clk 00:56:09]} {[%emt 00:01:39]} O-O {[%clk 00:54:01]} {[%emt 00:00:36]} 13.
O-O {[%clk 00:55:35]} {[%emt 00:01:04]} Qd6 {[%clk 00:49:46]} {[%emt 00:04:41]}
14. c3 {[%clk 00:48:04]} {[%emt 00:08:02]} e5 {[%clk 00:49:33]} {[%emt
00:00:43]} 15. dxe5 {[%clk 00:48:02]} {[%emt 00:00:35]} Qxe5 {[%clk 00:50:00]}
16. Nc5 {[%clk 00:46:26]} {[%emt 00:02:09]} Rfe8 {[%clk 00:49:49]} {[%emt
00:00:37]} 17. Re1 {[%clk 00:40:40]} {[%emt 00:06:16]} Qd6 {[%clk 00:46:36]}
{[%emt 00:03:43]} 18. Nd3 {[%clk 00:36:09]} {[%emt 00:05:02]} Re4 {[%clk
00:40:14]} {[%emt 00:06:52]} 19. Rxe4 {[%clk 00:26:04]} {[%emt 00:10:38]} dxe4
{[%clk 00:40:41]} 20. Nb4 {[%clk 00:26:29]} {[%emt 00:00:05]} Rd8 {[%clk
00:41:03]} {[%emt 00:00:10]} 21. Qe2 {[%clk 00:17:12]} {[%emt 00:09:44]} c5
{[%clk 00:40:37]} {[%emt 00:00:57]} 22. Nc2 {[%clk 00:17:36]} {[%emt 00:00:05]}
Qb6 {[%clk 00:34:28]} {[%emt 00:06:39]} 23. Na3 {[%clk 00:10:14]} {[%emt
00:07:52]} Rd2 {[%clk 00:33:05]} {[%emt 00:01:52]} 24. Qxe4 {[%clk 00:09:28]}
{[%emt 00:01:17]} Qxb2 {[%clk 00:33:25]} {[%emt 00:00:11]} 25. Rb1 {[%clk
00:07:20]} {[%emt 00:02:40]} Qxc3 {[%clk 00:30:06]} {[%emt 00:03:46]} 26. Nc4
{[%clk 00:05:33]} {[%emt 00:02:18]} Rd8 {[%clk 00:28:22]} {[%emt 00:02:13]} 27.
Qh4 {[%clk 00:03:01]} {[%emt 00:03:06]} Qd4 {[%clk 00:24:26]} {[%emt 00:04:22]}
28. Qxh6 {[%clk 00:03:28]} {[%emt 00:00:06]} Qxc4 {[%clk 00:24:48]} {[%emt
00:00:05]} 29. Qg5 {[%clk 00:01:34]} {[%emt 00:02:28]} Qd4 {[%clk 00:25:06]}
{[%emt 00:00:10]} 30. h4 {[%clk 00:01:04]} {[%emt 00:01:00]} h5 {[%clk
00:21:44]} {[%emt 00:03:50]} 31. g3 {[%clk 00:00:54]} {[%emt 00:00:40]} Re8
{[%clk 00:21:10]} {[%emt 00:01:08]} 32. Rc1 {[%clk 00:00:44]} {[%emt 00:00:37]}
Re5 {[%clk 00:21:16]} {[%emt 00:00:24]} 33. Qh6 {[%clk 00:00:46]} {[%emt
00:00:28]} Re2 {[%clk 00:20:21]} {[%emt 00:01:24]} 34. Qf4 {[%clk 00:00:50]}
{[%emt 00:00:27]} Rxa2 {[%clk 00:20:06]} {[%emt 00:00:44]} 35. Qf3 {[%clk
00:00:38]} {[%emt 00:00:42]} Ra1 {[%clk 00:19:26]} {[%emt 00:01:11]} 0-1

[Event "VII Open Internacional Quart de Poblet"]
[Site "Quart de Poblet, Spain"]
[Date "2019.08.09"]
[Round "6.2"]
[White "Davtyan, David Arm"]
[Black "Gavarrete, Nahun"]
[Result "1-0"]
[TimeControl "90m +30s por jugada"]
[BlackFideId "8400709"]
[WhiteElo "2249"]
[BlackElo "2349"]

1. e4 {[%clk 01:30:21]} {[%emt 00:00:39]} c5 {[%clk 01:27:43]} {[%emt
00:03:17]} 2. Nc3 {[%clk 01:30:45]} {[%emt 00:00:35]} g6 {[%clk 01:27:12]}
{[%emt 00:00:33]} 3. f4 {[%clk 01:28:39]} {[%emt 00:02:36]} Bg7 {[%clk
01:27:33]} {[%emt 00:00:12]} 4. Nf3 {[%clk 01:29:04]} {[%emt 00:00:17]} d6
{[%clk 01:24:17]} {[%emt 00:03:31]} 5. Bc4 {[%clk 01:28:53]} {[%emt 00:00:42]}
Nc6 {[%clk 01:23:11]} {[%emt 00:02:00]} 6. O-O {[%clk 01:28:16]} {[%emt
00:00:43]} Nf6 {[%clk 01:21:16]} {[%emt 00:02:36]} 7. d3 {[%clk 01:28:31]}
{[%emt 00:00:06]} O-O {[%clk 01:21:42]} {[%emt 00:00:04]} 8. Qe1 {[%clk
01:28:59]} {[%emt 00:00:03]} Nd4 {[%clk 01:19:08]} {[%emt 00:03:02]} 9. Nxd4
{[%clk 01:29:17]} {[%emt 00:00:12]} cxd4 {[%clk 01:19:31]} {[%emt 00:00:31]} 10.
Nb5 {[%clk 01:29:46]} a6 {[%clk 01:13:26]} {[%emt 00:06:18]} 11. Nxd4 {[%clk
01:30:12]} Qb6 {[%clk 01:12:18]} {[%emt 00:01:34]} 12. c3 {[%clk 01:30:38]}
{[%emt 00:00:21]} e5 {[%clk 01:11:48]} {[%emt 00:01:53]} 13. fxe5 {[%clk
01:31:35]} dxe5 {[%clk 01:11:52]} 14. Be3 {[%clk 01:32:04]} exd4 {[%clk
00:49:19]} {[%emt 00:22:53]} 15. Bxd4 {[%clk 01:32:29]} {[%emt 00:00:08]} Qd8
{[%clk 00:49:40]} {[%emt 00:00:10]} 16. Qh4 {[%clk 01:32:33]} {[%emt 00:00:21]}
Ng4 {[%clk 00:49:39]} {[%emt 00:00:46]} 17. Qxd8 {[%clk 01:31:49]} {[%emt
00:00:59]} Rxd8 {[%clk 00:50:07]} {[%emt 00:00:09]} 18. Rxf7 {[%clk 01:31:57]}
{[%emt 00:00:27]} Rxd4 {[%clk 00:41:30]} {[%emt 00:08:54]} 19. cxd4 {[%clk
01:31:22]} {[%emt 00:01:46]} Bxd4+ {[%clk 00:41:53]} 20. Kh1 {[%clk 01:31:19]}
{[%emt 00:00:04]} Kh8 {[%clk 00:42:10]} {[%emt 00:00:08]} 21. Raf1 {[%clk
01:30:15]} {[%emt 00:01:34]} Ne5 {[%clk 00:33:32]} {[%emt 00:09:08]} 22. Rf8+
{[%clk 01:28:59]} {[%emt 00:01:53]} Kg7 {[%clk 00:33:53]} {[%emt 00:00:05]} 23.
Rg8+ {[%clk 01:29:20]} {[%emt 00:00:06]} Kh6 {[%clk 00:33:51]} {[%emt
00:00:34]} 24. Rff8 {[%clk 01:29:28]} {[%emt 00:00:22]} b5 {[%clk 00:26:08]}
{[%emt 00:08:11]} 25. Bd5 {[%clk 01:27:39]} {[%emt 00:02:19]} Ra7 {[%clk
00:26:35]} {[%emt 00:00:42]} 26. Rxc8 {[%clk 01:27:55]} Nxd3 {[%clk 00:27:03]}
{[%emt 00:00:03]} 27. g3 {[%clk 01:26:31]} {[%emt 00:01:31]} Bxb2 {[%clk
00:27:16]} {[%emt 00:00:13]} 28. Rgf8 {[%clk 01:24:47]} {[%emt 00:02:16]} a5
{[%clk 00:22:58]} {[%emt 00:04:47]} 29. Ra8 {[%clk 01:19:41]} {[%emt 00:05:38]}
Rc7 {[%clk 00:23:26]} {[%emt 00:00:04]} 30. Rfc8 {[%clk 01:19:43]} {[%emt
00:00:25]} Rxc8 {[%clk 00:23:20]} {[%emt 00:00:36]} 31. Rxc8 {[%clk 01:20:11]}
{[%emt 00:00:07]} a4 {[%clk 00:23:43]} {[%emt 00:00:05]} 32. Bc6 {[%clk
01:19:33]} {[%emt 00:01:06]} a3 {[%clk 00:23:54]} {[%emt 00:00:33]} 33. Bxb5
{[%clk 01:19:52]} Nf2+ {[%clk 00:24:10]} {[%emt 00:00:11]} 34. Kg2 {[%clk
01:20:06]} {[%emt 00:00:14]} Nxe4 {[%clk 00:24:37]} {[%emt 00:00:32]} 35. Ra8
{[%clk 01:19:10]} {[%emt 00:00:57]} Kg5 {[%clk 00:22:50]} {[%emt 00:02:41]} 36.
Bd3 {[%clk 01:18:56]} {[%emt 00:00:24]} Nc3 {[%clk 00:22:12]} {[%emt 00:01:05]}
37. Ra5+ {[%clk 01:18:29]} {[%emt 00:01:03]} Kf6 {[%clk 00:22:32]} {[%emt
00:00:06]} 38. Bc4 {[%clk 01:18:45]} {[%emt 00:00:11]} Ne4 {[%clk 00:21:31]}
{[%emt 00:01:31]} 39. Bg8 {[%clk 01:17:00]} {[%emt 00:02:26]} Kg7 {[%clk
00:18:59]} {[%emt 00:02:50]} 40. Bd5 {[%clk 01:16:57]} {[%emt 00:00:38]} Nc3
{[%clk 00:19:15]} {[%emt 00:00:10]} 41. Ra7+ {[%clk 01:16:56]} {[%emt
00:00:49]} Kf6 {[%clk 00:19:23]} {[%emt 00:00:12]} 42. Bb3 {[%clk 01:17:18]} h5
{[%clk 00:18:25]} {[%emt 00:01:28]} 43. Ra6+ {[%clk 01:16:37]} {[%emt
00:01:20]} Kg7 {[%clk 00:18:51]} 44. Kf3 {[%clk 01:15:50]} {[%emt 00:01:14]}
Nb5 {[%clk 00:17:37]} {[%emt 00:01:41]} 45. h3 {[%clk 01:12:48]} {[%emt
00:03:31]} Nd4+ {[%clk 00:17:19]} {[%emt 00:00:52]} 46. Ke4 {[%clk 01:12:44]}
{[%emt 00:00:33]} g5 {[%clk 00:13:04]} {[%emt 00:05:06]} 47. g4 {[%clk
01:10:50]} {[%emt 00:02:00]} h4 {[%clk 00:06:13]} {[%emt 00:07:32]} 48. Bc4
{[%clk 01:11:03]} {[%emt 00:00:06]} Kh7 {[%clk 00:03:51]} {[%emt 00:02:53]} 49.
Rd6 {[%clk 01:10:28]} {[%emt 00:01:05]} Nc2 {[%clk 00:04:02]} {[%emt 00:00:33]}
50. Bb3 {[%clk 01:10:25]} {[%emt 00:00:18]} 1-0

[Event "VII Open Internacional Quart de Poblet"]
[Site "Quart de Poblet, Spain"]
[Date "2019.08.09"]
[Round "6.3"]
[White "Serrano Felipe, Rafael"]
[Black "Sanchez Saez, Francisco"]
[Result "0-1"]
[TimeControl "90m +30s por jugada"]
[WhiteFideId "2252112"]
[BlackFideId "2231743"]
[WhiteElo "2101"]
[BlackElo "2359"]

1. e4 {[%clk 01:30:57]} {[%emt 00:00:07]} g6 {[%clk 01:25:33]} {[%emt
00:05:27]} 2. d4 {[%clk 01:31:13]} {[%emt 00:00:21]} Bg7 {[%clk 01:25:56]} 3.
Be3 {[%clk 01:31:33]} {[%emt 00:00:08]} d5 {[%clk 01:23:31]} {[%emt 00:03:13]}
4. Nc3 {[%clk 01:27:23]} {[%emt 00:04:21]} dxe4 {[%clk 01:20:30]} {[%emt
00:03:32]} 5. Nxe4 {[%clk 01:27:45]} {[%emt 00:00:11]} Nh6 {[%clk 01:19:19]}
{[%emt 00:01:49]} 6. c3 {[%clk 01:17:05]} {[%emt 00:11:05]} Nf5 {[%clk
01:15:37]} {[%emt 00:04:38]} 7. Bf4 {[%clk 01:16:56]} {[%emt 00:00:08]} Nd6
{[%clk 01:13:37]} {[%emt 00:02:27]} 8. Bd3 {[%clk 01:15:26]} {[%emt 00:02:11]}
Nd7 {[%clk 01:11:47]} {[%emt 00:02:09]} 9. Nf3 {[%clk 01:13:25]} {[%emt
00:02:34]} Nxe4 {[%clk 01:11:42]} {[%emt 00:00:32]} 10. Bxe4 {[%clk 01:12:23]}
{[%emt 00:01:32]} Nf6 {[%clk 01:12:04]} {[%emt 00:00:20]} 11. Bc2 {[%clk
01:08:33]} {[%emt 00:04:08]} c6 {[%clk 01:04:04]} {[%emt 00:08:30]} 12. Ne5
{[%clk 01:00:15]} {[%emt 00:08:50]} Be6 {[%clk 01:00:07]} {[%emt 00:04:28]} 13.
Qd2 {[%clk 00:53:13]} {[%emt 00:07:31]} Qb6 {[%clk 00:55:37]} {[%emt 00:05:01]}
14. O-O {[%clk 00:46:22]} {[%emt 00:07:19]} Rd8 {[%clk 00:54:48]} {[%emt
00:01:18]} 15. Rfe1 {[%clk 00:38:49]} {[%emt 00:08:06]} O-O {[%clk 00:50:14]}
{[%emt 00:05:00]} 16. b4 {[%clk 00:33:15]} {[%emt 00:06:05]} a5 {[%clk
00:37:03]} {[%emt 00:13:42]} 17. a3 {[%clk 00:32:46]} {[%emt 00:00:58]} axb4
{[%clk 00:37:13]} {[%emt 00:00:20]} 18. axb4 {[%clk 00:33:14]} {[%emt
00:00:13]} Ra8 {[%clk 00:37:25]} {[%emt 00:00:11]} 19. Bd3 {[%clk 00:31:13]}
{[%emt 00:02:27]} Rxa1 {[%clk 00:32:33]} {[%emt 00:05:22]} 20. Rxa1 {[%clk
00:31:36]} {[%emt 00:00:24]} Nd5 {[%clk 00:32:05]} {[%emt 00:00:40]} 21. Bh6
{[%clk 00:30:23]} {[%emt 00:01:44]} Rd8 {[%clk 00:30:57]} {[%emt 00:01:38]} 22.
Bxg7 {[%clk 00:28:04]} {[%emt 00:02:49]} Kxg7 {[%clk 00:29:49]} {[%emt
00:01:39]} 23. Qe1 {[%clk 00:21:42]} {[%emt 00:06:50]} Qc7 {[%clk 00:25:01]}
{[%emt 00:05:18]} 24. g3 {[%clk 00:17:48]} {[%emt 00:04:25]} Qc8 {[%clk
00:21:35]} {[%emt 00:03:56]} 25. Rd1 {[%clk 00:12:19]} {[%emt 00:05:57]} Bf5
{[%clk 00:17:11]} {[%emt 00:05:04]} 26. c4 {[%clk 00:08:44]} {[%emt 00:04:00]}
Nf6 {[%clk 00:16:35]} {[%emt 00:01:03]} 27. Qe3 {[%clk 00:07:17]} {[%emt
00:01:56]} Bxd3 {[%clk 00:14:58]} {[%emt 00:02:08]} 28. Rxd3 {[%clk 00:07:11]}
{[%emt 00:00:38]} b5 {[%clk 00:14:19]} {[%emt 00:01:09]} 29. Rc3 {[%clk
00:04:55]} {[%emt 00:02:43]} Qh3 {[%clk 00:08:21]} {[%emt 00:06:59]} 30. g4
{[%clk 00:03:11]} {[%emt 00:01:43]} Qh4 {[%clk 00:04:40]} {[%emt 00:04:11]} 31.
h3 {[%clk 00:02:15]} {[%emt 00:01:28]} Ra8 {[%clk 00:04:40]} {[%emt 00:00:29]}
32. Qf3 {[%clk 00:01:47]} {[%emt 00:00:58]} Ra1+ {[%clk 00:03:40]} {[%emt
00:01:32]} 33. Kg2 {[%clk 00:02:06]} {[%emt 00:00:08]} Ra2 {[%clk 00:03:37]}
{[%emt 00:00:33]} 34. d5 {[%clk 00:01:15]} {[%emt 00:01:26]} cxd5 {[%clk
00:03:13]} {[%emt 00:00:51]} 35. cxd5 {[%clk 00:01:36]} {[%emt 00:00:07]} h5
{[%clk 00:01:46]} {[%emt 00:01:57]} 36. Re3 {[%clk 00:01:06]} {[%emt 00:01:02]}
hxg4 {[%clk 00:01:59]} {[%emt 00:00:15]} 37. Nxg4 {[%clk 00:01:01]} {[%emt
00:00:36]} Nxg4 {[%clk 00:02:01]} {[%emt 00:00:41]} 38. hxg4 {[%clk 00:01:09]}
{[%emt 00:00:08]} Rd2 {[%clk 00:01:15]} {[%emt 00:01:35]} 39. Re5 {[%clk
00:00:31]} {[%emt 00:00:49]} Rd4 {[%clk 00:01:17]} {[%emt 00:00:29]} 40. Re4
{[%clk 00:00:37]} {[%emt 00:00:23]} Rxd5 {[%clk 00:01:07]} {[%emt 00:00:42]} 41.
Rxe7 {[%clk 00:00:43]} {[%emt 00:00:22]} Qxe7 {[%clk 00:01:13]} {[%emt
00:00:39]} 42. Qxd5 {[%clk 00:01:05]} Qxb4 {[%clk 00:01:38]} {[%emt 00:00:04]}
43. g5 {[%clk 00:01:12]} {[%emt 00:00:18]} Qb2 {[%clk 00:01:40]} {[%emt
00:00:27]} 44. Kg3 {[%clk 00:00:43]} {[%emt 00:01:02]} Qc3+ {[%clk 00:02:03]}
{[%emt 00:00:06]} 45. f3 {[%clk 00:00:55]} {[%emt 00:00:20]} b4 {[%clk
00:02:23]} {[%emt 00:00:09]} 0-1

[Event "VII Open Internacional Quart de Poblet"]
[Site "Quart de Poblet, Spain"]
[Date "2019.08.09"]
[Round "6.4"]
[White "Martinez Villena, David"]
[Black "Kovacevic, Slobodan"]
[Result "0-1"]
[TimeControl "90m +30s por jugada"]
[WhiteFideId "2284022"]
[BlackFideId "902152"]
[WhiteElo "2006"]
[BlackElo "2252"]

1. e4 {[%clk 01:30:58]} {[%emt 00:00:18]} c5 {[%clk 01:26:30]} {[%emt
00:04:15]} 2. c3 {[%clk 01:30:55]} {[%emt 00:00:33]} e6 {[%clk 01:25:54]}
{[%emt 00:01:05]} 3. d4 {[%clk 01:30:49]} {[%emt 00:00:36]} d5 {[%clk
01:25:39]} {[%emt 00:00:46]} 4. exd5 {[%clk 01:29:26]} {[%emt 00:01:52]} exd5
{[%clk 01:25:11]} {[%emt 00:00:59]} 5. Be3 {[%clk 01:29:09]} {[%emt 00:00:46]}
c4 {[%clk 01:24:13]} {[%emt 00:01:29]} 6. b3 {[%clk 01:28:59]} {[%emt
00:00:40]} cxb3 {[%clk 01:24:00]} {[%emt 00:00:44]} 7. axb3 {[%clk 01:29:17]}
{[%emt 00:00:24]} Nc6 {[%clk 01:23:23]} {[%emt 00:00:53]} 8. Bd3 {[%clk
01:28:49]} {[%emt 00:00:58]} Nf6 {[%clk 01:22:41]} {[%emt 00:01:12]} 9. h3
{[%clk 01:28:10]} {[%emt 00:01:12]} h6 {[%clk 01:13:08]} {[%emt 00:10:28]} 10.
Qf3 {[%clk 01:25:48]} {[%emt 00:02:23]} Bd6 {[%clk 01:06:41]} {[%emt 00:07:01]}
11. Ne2 {[%clk 01:25:21]} {[%emt 00:00:54]} O-O {[%clk 01:05:35]} {[%emt
00:01:56]} 12. Nd2 {[%clk 01:23:57]} {[%emt 00:01:54]} Re8 {[%clk 01:03:27]}
{[%emt 00:02:19]} 13. O-O {[%clk 01:23:35]} {[%emt 00:00:51]} a6 {[%clk
00:59:56]} {[%emt 00:04:03]} 14. Ng3 {[%clk 01:20:42]} {[%emt 00:03:21]} Bc7
{[%clk 00:51:50]} {[%emt 00:08:39]} 15. Rfe1 {[%clk 01:18:44]} {[%emt
00:02:27]} Be6 {[%clk 00:50:11]} {[%emt 00:02:07]} 16. b4 {[%clk 01:15:51]}
{[%emt 00:03:27]} a5 {[%clk 00:43:34]} {[%emt 00:07:04]} 17. b5 {[%clk
01:13:55]} {[%emt 00:02:26]} Na7 {[%clk 00:38:44]} {[%emt 00:05:19]} 18. Nf5
{[%clk 00:52:20]} {[%emt 00:22:05]} Bxf5 {[%clk 00:36:26]} {[%emt 00:02:48]} 19.
Qxf5 {[%clk 00:52:36]} {[%emt 00:00:13]} Nc8 {[%clk 00:36:31]} {[%emt
00:00:33]} 20. c4 {[%clk 00:34:51]} {[%emt 00:18:08]} Nd6 {[%clk 00:34:53]}
{[%emt 00:02:09]} 21. Qf3 {[%clk 00:35:01]} {[%emt 00:00:28]} dxc4 {[%clk
00:34:23]} {[%emt 00:00:52]} 22. Nxc4 {[%clk 00:34:25]} {[%emt 00:01:31]} Nxb5
{[%clk 00:30:32]} {[%emt 00:03:56]} 23. Nb6 {[%clk 00:20:37]} {[%emt 00:14:21]}
Nxd4 {[%clk 00:24:46]} {[%emt 00:06:43]} 24. Bxd4 {[%clk 00:21:00]} Rxe1+
{[%clk 00:25:07]} {[%emt 00:00:13]} 25. Rxe1 {[%clk 00:21:22]} Bxb6 {[%clk
00:24:35]} {[%emt 00:00:54]} 26. Bxf6 {[%clk 00:21:32]} {[%emt 00:00:12]} Qxf6
{[%clk 00:24:46]} {[%emt 00:00:40]} 27. Qxf6 {[%clk 00:21:45]} {[%emt
00:00:03]} gxf6 {[%clk 00:25:13]} 28. Rb1 {[%clk 00:22:06]} {[%emt 00:00:11]}
Bc5 {[%clk 00:24:14]} {[%emt 00:01:20]} 29. Rxb7 {[%clk 00:22:23]} {[%emt
00:00:37]} Kf8 {[%clk 00:22:09]} {[%emt 00:02:13]} 30. Bc4 {[%clk 00:21:30]}
{[%emt 00:01:25]} Be7 {[%clk 00:22:23]} {[%emt 00:00:21]} 31. Bd5 {[%clk
00:20:10]} {[%emt 00:01:42]} Rd8 {[%clk 00:16:32]} {[%emt 00:07:01]} 32. Bb3
{[%clk 00:20:05]} {[%emt 00:00:04]} Rd2 {[%clk 00:16:38]} {[%emt 00:00:14]} 33.
Ra7 {[%clk 00:18:58]} {[%emt 00:01:38]} Rb2 {[%clk 00:16:30]} {[%emt 00:00:38]}
34. Bd5 {[%clk 00:15:13]} {[%emt 00:04:17]} Rb5 {[%clk 00:13:22]} {[%emt
00:03:35]} 35. Ba2 {[%clk 00:15:33]} {[%emt 00:00:12]} f5 {[%clk 00:13:18]}
{[%emt 00:00:35]} 36. g3 {[%clk 00:14:59]} {[%emt 00:01:03]} Re5 {[%clk
00:08:41]} {[%emt 00:05:06]} 37. Kg2 {[%clk 00:14:45]} {[%emt 00:00:50]} Ke8
{[%clk 00:08:07]} {[%emt 00:00:54]} 38. Kf3 {[%clk 00:14:59]} {[%emt 00:00:30]}
f6 {[%clk 00:08:15]} {[%emt 00:00:10]} 39. Bb3 {[%clk 00:14:00]} {[%emt
00:01:30]} Kd8 {[%clk 00:08:21]} {[%emt 00:00:23]} 40. Ba4 {[%clk 00:08:55]}
{[%emt 00:05:52]} Kc8 {[%clk 00:07:28]} {[%emt 00:01:07]} 41. Bc6 {[%clk
00:07:58]} {[%emt 00:01:26]} Bd8 {[%clk 00:05:49]} {[%emt 00:02:09]} 42. Kf4
{[%clk 00:05:50]} {[%emt 00:02:39]} Rc5 {[%clk 00:04:23]} {[%emt 00:01:55]} 43.
Bf3 {[%clk 00:04:05]} {[%emt 00:02:17]} Bc7+ {[%clk 00:03:09]} {[%emt
00:01:42]} 44. Ke3 {[%clk 00:03:58]} {[%emt 00:00:37]} Bb6 {[%clk 00:02:53]}
{[%emt 00:00:46]} 45. Ra8+ {[%clk 00:03:35]} {[%emt 00:01:06]} Kc7 {[%clk
00:03:18]} 46. Kd3 {[%clk 00:02:24]} {[%emt 00:01:33]} Re5 {[%clk 00:03:27]}
{[%emt 00:00:21]} 47. Rf8 {[%clk 00:01:03]} {[%emt 00:01:51]} Bxf2 {[%clk
00:03:47]} {[%emt 00:00:14]} 48. Rxf6 {[%clk 00:00:46]} {[%emt 00:00:43]} Re3+
{[%clk 00:04:09]} {[%emt 00:00:13]} 49. Kd2 {[%clk 00:01:10]} {[%emt 00:00:06]}
Rxf3 {[%clk 00:04:21]} {[%emt 00:00:13]} 50. Rf7+ {[%clk 00:01:35]} {[%emt
00:00:14]} Kc6 {[%clk 00:04:17]} {[%emt 00:00:25]} 51. Ke2 {[%clk 00:02:00]}
{[%emt 00:00:06]} Rxg3 {[%clk 00:04:25]} {[%emt 00:00:21]} 52. Kxf2 {[%clk
00:02:24]} {[%emt 00:00:32]} Rxh3 {[%clk 00:04:48]} {[%emt 00:00:04]} 53. Rxf5
{[%clk 00:02:40]} a4 {[%clk 00:04:48]} {[%emt 00:00:21]} 54. Ra5 {[%clk
00:02:13]} {[%emt 00:00:57]} a3 {[%clk 00:05:16]} {[%emt 00:00:13]} 55. Kg2
{[%clk 00:02:33]} {[%emt 00:00:04]} Kb6 {[%clk 00:05:11]} {[%emt 00:00:39]} 56.
Ra8 {[%clk 00:02:30]} {[%emt 00:00:24]} Rc3 {[%clk 00:05:40]} 57. Kf2 {[%clk
00:01:17]} {[%emt 00:01:48]} Rc2+ {[%clk 00:05:44]} {[%emt 00:00:23]} 58. Kg3
{[%clk 00:00:48]} {[%emt 00:01:01]} a2 {[%clk 00:05:58]} {[%emt 00:00:13]} 59.
Kh3 {[%clk 00:00:57]} {[%emt 00:00:36]} Kb5 {[%clk 00:06:18]} {[%emt 00:00:03]}
60. Rb8+ {[%clk 00:00:53]} {[%emt 00:00:40]} Kc4 {[%clk 00:06:35]} {[%emt
00:00:03]} 61. Rc8+ {[%clk 00:00:59]} {[%emt 00:00:21]} Kb3 {[%clk 00:06:42]}
{[%emt 00:00:24]} 62. Rb8+ {[%clk 00:01:12]} {[%emt 00:00:16]} Kc3 {[%clk
00:07:06]} {[%emt 00:00:10]} 63. Rc8+ {[%clk 00:00:50]} {[%emt 00:00:49]} Kb2
{[%clk 00:07:33]} {[%emt 00:00:37]} 64. Rb8+ {[%clk 00:01:12]} Kc1 {[%clk
00:07:52]} {[%emt 00:00:03]} 65. Ra8 {[%clk 00:01:28]} {[%emt 00:00:04]} Rc3+
{[%clk 00:08:08]} {[%emt 00:00:05]} 66. Kh4 {[%clk 00:00:33]} {[%emt 00:01:24]}
Kb2 {[%clk 00:08:35]} {[%emt 00:00:25]} 0-1